Workbook

Sheet 1
A1: Согласовано:
A2: Начальник отдела образования
A3: исполнительного комитета
A4: Мамадышского муниципального района
B5: И.Н.Габдрахманов
A7: Примерное двухнедельное меню школьных завтраков для организации питания детей , .С прибыванием детей до 6 часов (5-11кл)
A8: Использован: Сборник рецептур блюд и кулинарных изделий для предприятий общетвенного питания 1993 и 1996гг.Сборник рецептур блюд и кулинарный изделий татарской нацинальной кухни 1997г.
A9: № рецепта | B9: Наименование блюд | C9: Основные компоненты | D9: Брутто | E9: Нетто | F9: Выход | G9: Белки | H9: Жиры | I9: Углеводы | J9: Ккал | K9: Всего | M9: В том числе
M10: Бюджет | O10: За счет собственной продукции | Q10: Родительский взнос плата
K11: Цена за кг | L11: Сумма | M11: Цена за кг | N11: Сумма | O11: Цена за кг | P11: Сумма | Q11: Цена за кг | R11: Сумма
A12: 1 день
A13: №10 | B13: Икра морковная | C13: морковь | D13: 60 | E13: 79 | G13: 1.4 | I13: 3.7 | J13: 21.3 | K13: 35 | L13: =D13*K13/1000 -> 2.10 | N13: =D13*M13/1000 -> 0.00 | O13: 35 | P13: =D13*O13/1000 -> 2.10 | R13: =D13*Q13/1000 -> 0
C14: лук | D14: 10 | E14: 10 | G14: 0.14 | I14: 0.91 | J14: 4.1 | K14: 30 | L14: =D14*K14/1000 -> 0.30 | N14: =D14*M14/1000 -> 0.00 | O14: 30 | P14: =D14*O14/1000 -> 0.30 | R14: =D14*Q14/1000 -> 0
C15: сахар | D15: 2 | E15: 5 | I15: 4.9 | J15: 18.9 | K15: 80 | L15: =D15*K15/1000 -> 0.16 | N15: =D15*M15/1000 -> 0.00 | O15: 80 | P15: =D15*O15/1000 -> 0.16 | R15: =D15*Q15/1000 -> 0
C16: томат паста | D16: 10 | E16: 10 | K16: 175 | L16: 1.75 | N16: =D16*M16/1000 -> 0.00 | R16: =D16*Q16/1000 -> 0
C17: масло растительное | D17: 3 | E17: 5 | H17: 4.99 | J17: 44.9 | K17: 140 | L17: =D17*K17/1000 -> 0.42 | M17: 140 | N17: =D17*M17/1000 -> 0.42 | P17: =D17*O17/1000 -> 0.00 | R17: =D17*Q17/1000 -> 0
C18: итого | F18: 100 | G18: =SUM(G13:G17) -> 1.54 | H18: 4.99 | I18: 9.51 | J18: 89.2 | K18: 460 | L18: 4.73 | M18: 140 | N18: 0.42 | O18: 145 | P18: 2.56 | Q18: 0 | R18: 0
A19: №610 | B19: Биточки из говядины | C19: Говядина (котлетное мясо) | D19: 72 | E19: 72 | G19: 6.32 | H19: 4.08 | J19: 55.59 | K19: 440 | L19: =D19*K19/1000 -> 31.68 | N19: =D19*M19/1000 -> 0.00 | P19: =D19*O19/1000 -> 0.00 | Q19: 440 | R19: =D19*Q19/1000 -> 31.68
C20: Сухари | D20: 1 | E20: 2 | G20: 0.22 | H20: 0.02 | I20: 1.44 | J20: 6.62 | K20: 100 | L20: 0.10 | M20: 100 | N20: 0.10 | P20: 0.00 | R20: 0
C21: Хлеб ржанойй | D21: 7 | E21: 7 | G21: 0.57 | H21: 0.06 | I21: 0.47 | J21: 15.82 | K21: 51 | L21: 0.36 | M21: 51 | N21: 0.36 | P21: 0.00 | R21: 0
C22: Масло сливочное | D22: 5 | E22: 5 | G22: 0.04 | H22: 3.6 | I22: 0.06 | J22: 33.05 | K22: 800 | L22: 4.00 | M22: 800 | N22: 4.00 | P22: 0.00 | R22: 0
C23: Соль | D23: 0.6 | E23: 0.6 | G23: - | H23: - | I23: - | J23: - | K23: 16 | L23: 0.01 | M23: 16 | N23: 0.01 | P23: 0.00 | R23: 0
C24: Масса п/ф | E24: 50 | G24: - | I24: - | J24: - | L24: 0.00 | N24: 0.00 | P24: 0.00 | R24: 0
C25: Масло растительное | D25: 3 | E25: 3 | G25: - | H25: 1.99 | I25: - | J25: 17.98 | K25: 140 | L25: 0.42 | M25: 140 | N25: 0.42 | P25: 0.00 | R25: 0
F26: 41 | G26: =SUM(G19:G25) -> 7.15 | H26: 9.75 | I26: 1.97 | J26: 129.06 | K26: 1547 | L26: 36.5666 | M26: 1107 | N26: 4.8866 | O26: 0 | P26: 0 | Q26: 440 | R26: 31.68
L27: =D27*K27/1000 -> 0.00 | N27: =D27*M27/1000 -> 0.00 | P27: =D27*O27/1000 -> 0.00 | R27: =D27*Q27/1000 -> 0
A28: №746 | B28: Каша гречневая | C28: Крупа гречневая | D28: 50 | G28: 5.9 | H28: 1.65 | I28: 30.95 | J28: 167.5 | K28: 100 | L28: =D28*K28/1000 -> 5.00 | M28: 100 | N28: =D28*M28/1000 -> 5.00 | P28: =D28*O28/1000 -> 0.00 | R28: =D28*Q28/1000 -> 0
C29: Масло сливочное | D29: 5 | G29: 0.04 | H29: 3.6 | I29: 0.06 | J29: 33.05 | K29: 800 | L29: =D29*K29/1000 -> 4.00 | M29: 800 | N29: =D29*M29/1000 -> 4.00 | P29: =D29*O29/1000 -> 0.00 | R29: =D29*Q29/1000 -> 0
C30: Соль | D30: 0.5 | G30: - | H30: - | K30: 16 | L30: =D30*K30/1000 -> 0.01 | M30: 16 | N30: =D30*M30/1000 -> 0.01 | P30: =D30*O30/1000 -> 0.00 | R30: =D30*Q30/1000 -> 0
C31: итого | F31: 100 | G31: =SUM(G28:G30) -> 5.94 | H31: 5.25 | I31: 31.01 | J31: 200.55 | K31: 916 | L31: 9.008 | M31: 916 | N31: 9.008 | O31: 0 | P31: 0 | Q31: 0 | R31: 0
A32: №944 | B32: Какао с молоком | C32: какао порошок | D32: 4 | E32: 4 | G32: 0.04 | H32: - | I32: - | K32: 688 | L32: =D32*K32/1000 -> 2.75 | M32: 688 | N32: =D32*M32/1000 -> 2.75 | P32: =D32*O32/1000 -> 0.00 | R32: =D32*Q32/1000 -> 0
C33: молоко | D33: 100 | E33: 100 | G33: 2.85 | H33: 3.2 | I33: 4.73 | J33: 58 | K33: 65 | L33: 6.50 | P33: =D33*O33/1000 -> 0.00 | R33: =D33*Q33/1000 -> 0
C34: Сахар | D34: 20 | E34: 20 | G34: 0 | I34: 14.9 | J34: 58 | K34: 80 | L34: =D34*K34/1000 -> 1.60 | M34: 80 | N34: =D34*M34/1000 -> 1.60 | P34: =D34*O34/1000 -> 0.00 | R34: =D34*Q34/1000 -> 0
C35: итого | F35: 200/7 | Q35: =SUM(Q32:Q34) -> 0 | R35: 0
B36: хлеб | C36: хлеб | D36: 20 | E36: 20 | F36: 20 | K36: 51 | L36: 1.02 | M36: 51 | N36: 1.02
B37: хлеб | C37: хлеб | D37: 30 | E37: 30 | F37: 30 | G37: 12.16 | H37: 1.44 | I37: 79.76 | J37: 180.8 | K37: 60 | L37: =D37*K37/1000 -> 1.80 | M37: 60 | N37: =D37*M37/1000 -> 1.80 | P37: =D37*O37/1000 -> 0.00 | R37: =D37*Q37/1000 -> 0
B38: Кондитерские изделия | C38: Прянник | D38: 50 | E38: 50 | F38: 50 | G38: 2.15 | H38: 16.05 | I38: 32.5 | J38: 280.5 | K38: 180 | L38: =D38*K38/1000 -> 9.00 | N38: =D38*M38/1000 -> 0.00 | P38: =D38*O38/1000 -> 0.00 | Q38: 180 | R38: =D38*Q38/1000 -> 9
L39: =D39*K39/1000 -> 0.00 | N39: =D39*M39/1000 -> 0.00 | P39: =D39*O39/1000 -> 0.00 | R39: =D39*Q39/1000 -> 0
C40: итого | F40: 50 | G40: =SUM(G38:G39) -> 2.15 | H40: 16.05 | I40: 32.5 | J40: 280.5 | K40: 180 | L40: 9 | M40: 0 | N40: 0 | O40: 0 | P40: 0 | Q40: 180 | R40: 9
G41: =G18+G26+G31+G35+G37+G40 -> 28.94 | H41: 37.48 | I41: 154.75 | J41: 880.11 | K41: 3163 | L41: 61.1046 | M41: 2223 | N41: 16.11 | O41: 145 | P41: 2.56 | Q41: 620 | R41: 40.68
A42: итого за день

Sheet 2
A1: № рецепта | B1: Наименование блюд | C1: Основные компоненты | D1: Брутто | E1: Нетто | F1: Выход | G1: Белки | H1: Жиры | I1: Углеводы | J1: Ккал | K1: Всего | M1: В том числе
B2: 2 день | M2: Бюджет | O2: За счет собственной продукции | Q2: Родительский взнос плата
K3: Цена за кг | L3: Сумма | M3: Цена за кг | N3: Сумма | O3: Цена за кг | P3: Сумма | Q3: Цена за кг | R3: Сумма
A4: №273
C7: итого | F7: 100 | G7: =SUM(G4:G6) -> 0 | H7: 0 | I7: 0 | J7: 0 | K7: 0 | L7: 0 | M7: 0 | N7: 0 | O7: 0 | P7: 0 | Q7: 0 | R7: 0
A8: №411 | B8: Фрукты | C8: Яблоки | D8: 100 | E8: 100 | F8: 100 | G8: 0 | H8: 0 | I8: 10.98 | J8: 47.52 | K8: 100 | L8: 10.00 | M8: 100 | N8: 10.00 | O8: 100 | P8: 10.00 | Q8: 100 | R8: 10
B9: Рагу из птицы | C9: курица | D9: 100 | E9: 100 | K9: 270 | L9: 2.70 | M9: 100 | N9: 2.70
C10: картофель | D10: 63.7 | G10: 0.6 | H10: 0.12 | I10: 4.98 | J10: 24.4 | K10: 25 | L10: =D10*K10/1000 -> 1.59 | N10: =D10*M10/1000 -> 0.00 | O10: 25 | P10: =D10*O10/1000 -> 1.59 | R10: =D10*Q10/1000 -> 0
C11: соль | D11: 2 | E11: 2 | K11: 16 | L11: 0.03 | N11: 0.00 | P11: 0.00 | Q11: 16 | R11: 0.032
C12: морковь | D12: 28.4 | E12: 22.7 | G12: 0.19 | I12: 1.08 | J12: 5.13 | K12: 35 | L12: 0.99 | N12: 0.00 | O12: 35 | P12: 0.99 | R12: 0
C13: лук | D13: 14.3 | E13: 12 | G13: 0.1 | I13: 1.08 | J13: 3.28 | K13: 30 | L13: 0.43 | N13: 0.00 | O13: 30 | P13: 0.43 | R13: 0
C14: капуста | D14: 69.8 | E14: 57 | G14: 0.6 | H14: 0.03 | I14: 0.72 | J14: 9.9 | K14: 25 | L14: =D14*K14/1000 -> 1.75 | N14: =D14*M14/1000 -> 0.00 | O14: 25 | P14: =D14*O14/1000 -> 1.75 | R14: =D14*Q14/1000 -> 0
C15: масло растительное | D15: 4 | E15: 4 | G15: 0.048 | H15: 4.35 | I15: 0.156 | J15: 39.66 | K15: 140 | L15: 0.56 | M15: 140 | N15: 0.56 | P15: 0.00 | R15: 0
C16: томатный соус | D16: 5 | E16: 5 | G16: 0.4 | H16: 2.9 | I16: 0.05 | J16: 9.9 | K16: 86.05 | L16: 0.43 | M16: 86.05 | N16: 0.43 | P16: 0.00 | R16: 0
A18: №959 | B18: Кофейный напиток с молоком | C18: Кофейный напиток | D18: 5 | E18: 5 | F18: 5 | G18: 54 | H18: 2.16 | I18: 0.74 | J18: 24.42 | K18: 500 | L18: 25.00 | Q18: 500 | R18: 25
C19: Сахар | D19: 20 | E19: 20 | F19: 20 | G19: 0 | H19: 0 | I19: 11.088 | J19: 42.67 | P19: 20.00 | Q19: 80 | R19: 16
C20: Молоко | D20: 100 | E20: 100 | F20: 100 | G20: 2.82 | H20: 3.2 | I20: 4.73 | J20: 58 | K20: 65 | L20: 6.50 | M20: 65 | N20: 6.50
B21: хлеб пшеничный | C21: хлеб | D21: 30 | E21: 30 | F21: 30 | G21: 6.96 | H21: 1.2 | I21: 46 | J21: 167.2 | K21: 60 | L21: 1.80 | M21: 60 | N21: =D21*M21/1000 -> 1.80 | O21: =G21*N21/1000 -> 0.01 | P21: =D21*O21/1000 -> 0.00 | Q21: =I21*P21/1000 -> 0.00 | R21: =D21*Q21/1000 -> 5.186592e-07
B22: хлеб пшенично-ржаной | C22: хлеб | D22: 20 | E22: 20 | F22: 20 | G22: 6.96 | H22: 1.02 | I22: 46 | J22: 167.2 | K22: 51 | L22: 1.02 | M22: 51.00 | N22: 1.02
C24: итого
A25: итого за день | C25: 67.33 | G25: =G24+G21+#REF!+G17 ->  | H25: =H24+H21+#REF!+H17 ->  | I25: =I24+I21+#REF!+I17 ->  | J25: =J24+J21+#REF!+J17 ->  | K25: =K24+K21+#REF!+K17 ->  | L25: =L24+L21+#REF!+L17+L7 ->  | M25: =M24+M21+#REF!+M17+M7 ->  | N25: =N24+N21+#REF!+N17+N7 ->  | O25: =O24+O21+#REF!+O17+O7 ->  | P25: =P24+P21+#REF!+P17+P7 ->  | Q25: =Q24+Q21+#REF!+Q17+Q7 ->  | R25: =R24+R21+#REF!+R17+R7 -> 

Sheet 3
A1: № рецепта | B1: Наименование блюд | C1: Основные компоненты | D1: Брутто | E1: Нетто | F1: Выход | G1: Белки | H1: Жиры | I1: Углеводы | J1: Ккал | K1: Всего | M1: В том числе
B2: 3 день | M2: Бюджет | O2: За счет собственной продукции | Q2: Родительский взнос плата
K3: Цена за кг | L3: Сумма | M3: Цена за кг | N3: Сумма | O3: Цена за кг | P3: Сумма | Q3: Цена за кг | R3: Сумма
A5: №610 | B5: Гуляш из говядины | C5: Говядина | D5: 87 | E5: 74 | G5: 16.89 | H5: 12.9 | J5: 174.9 | K5: 440 | L5: =D5*K5/1000 -> 38.28 | N5: =D5*M5/1000 -> 0.00 | P5: =D5*O5/1000 -> 0.00 | Q5: 440 | R5: =D5*Q5/1000 -> 38.28
C6: Масло растительное | D6: 5 | E6: 5 | H6: 4.99 | J6: 44.95 | K6: 140 | L6: 0.70 | M6: 140 | N6: 0.70 | P6: 0.00 | R6: 0
C7: Лук репчатый | D7: 18 | E7: 15 | G7: 0.21 | H7: - | I7: 1.36 | J7: 6.15 | K7: 30 | L7: 0.54 | N7: 0.00 | O7: 30 | P7: 0.54 | R7: 0
C8: Томат | D8: 12 | E8: 12 | G8: 0.43 | I8: 1.87 | J8: 9.16 | K8: 70 | L8: 0.84 | M8: 70 | N8: 0.84 | P8: 0.00 | R8: 0
C9: Или томат.паста | D9: 4.8 | E9: 4.8 | G9: 0.23 | I9: 0.97 | J9: 2.16 | K9: 70 | L9: 0.34 | M9: 70 | N9: 0.34 | P9: 0.00 | R9: 0
C10: Соль | D10: 1 | E10: 3 | G10: - | H10: - | I10: - | J10: - | K10: 16 | L10: 0.02 | M10: 16 | N10: 0.02 | P10: 0.00 | R10: 0
C11: Масса тушен.мяса | E11: 50 | G11: - | I11: - | J11: - | L11: 0.00 | N11: 0.00 | P11: 0.00 | R11: 0
C12: Мука | D12: 4 | E12: 4 | G12: 0.43 | H12: 0.04 | I12: 2.72 | J12: 13.08 | K12: 40 | L12: 0.16 | N12: 0.00 | P12: 0.00 | Q12: 40 | R12: 0.16
G13: 18.19 | H13: 17.93 | I13: 6.92 | J13: 250.4 | K13: 806 | L13: 40.87 | M13: 296 | N13: 1.892 | O13: 30 | P13: 0.54 | Q13: 480 | R13: 38.44
A14: №746 | B14: Макароны отварные | C14: макароны | D14: 51 | G14: 3.5 | H14: 0.37 | I14: 23.6 | J14: 114.5 | K14: 50 | L14: =D14*K14/1000 -> 2.55 | M14: 50 | N14: =D14*M14/1000 -> 2.6 | P14: =D14*O14/1000 -> 0.00 | R14: =D14*Q14/1000 -> 0
C15: Соль | D15: 3 | G15: - | H15: - | I15: - | J15: - | K15: 16 | L15: =D15*K15/1000 -> 0.05 | M15: 16 | N15: =D15*M15/1000 -> 0.05 | P15: =D15*O15/1000 -> 0.00 | R15: =D15*Q15/1000 -> 0
C16: Масло слив | D16: 5 | G16: 0.02 | H16: 2.5 | I16: 0.04 | J16: 23.1 | K16: 625 | L16: =D16*K16/1000 -> 3.13 | M16: 625 | N16: =D16*M16/1000 -> 3.13 | P16: =D16*O16/1000 -> 0.00 | R16: =D16*Q16/1000 -> 0
C17: итого | F17: 150 | G17: =SUM(G14:G16) -> 3.52 | H17: 2.87 | I17: 23.64 | J17: 137.6 | K17: 691 | L17: 5.723 | M17: 691 | N17: 5.723 | O17: 0 | P17: 0 | Q17: 0 | R17: 0
A18: №944 | B18: Чай с сахаром | C18: заварка | D18: 1 | E18: 1 | F18: 1 | K18: 688 | L18: 6.88 | M18: 688 | N18: 6.88
C19: Сахар | D19: 15 | E19: 15 | G19: 0 | H19: - | I19: 14.9 | J19: 56.8 | K19: 80 | L19: =D19*K19/1000 -> 1.20 | M19: 80 | N19: =D19*M19/1000 -> 1.20 | P19: =D19*O19/1000 -> 0.00 | R19: =D19*Q19/1000 -> 0
C20: итого | F20: 200 | G20: =SUM(G18:G19) -> 0
B21: хлеб иодированный | C21: хлеб | D21: 30 | E21: 30 | F21: 30 | G21: 6.96 | H21: 1.2 | I21: 46 | J21: 167.2 | K21: 60 | L21: 1.8 | M21: 30 | N21: 1.8
C22: хлеб | D22: 20 | E22: 20 | F22: 20 | G22: 6.96 | H22: 1.2 | I22: 46 | J22: 167.2 | K22: 51 | L22: =D22*K22/1000 -> 1.02 | M22: 20 | N22: 1.02 | P22: =D22*O22/1000 -> 0.00 | R22: =D22*Q22/1000 -> 0
G24: =SUM(G23:G23) -> 0 | H24: =SUM(H23:H23) -> 0 | I24: =SUM(I23:I23) -> 0 | J24: =SUM(J23:J23) -> 0 | L24: =SUM(L23:L23) -> 0.00 | M24: 0.00 | N24: 0.00 | O24: 0.00 | P24: 0.00 | Q24: 0.00 | R24: 0.00
A25: итого за день | G25: =G24+G22+G20+G12 -> 7.390 | H25: =H24+H22+H20+H12 -> 1.240 | I25: =I24+I22+I20+I12 -> 48.720 | J25: =J24+J22+J20+J12 -> 180.280 | K25: =K24+K22+K20+K12 -> 91.000 | L25: =L24+L22+L20+L12+#REF! ->  | M25: =M24+M22+M20+M12+#REF! ->  | N25: =N24+N22+N20+N12+#REF! ->  | O25: =O24+O22+O20+O12+#REF! ->  | P25: =P24+P22+P20+P12+#REF! ->  | Q25: =Q24+Q22+Q20+Q12+#REF! ->  | R25: =R24+R22+R20+R12+#REF! -> 

Sheet 4
A1: Примерное двухнедельное меню школьных завтраков для организации питания детей .
A2: Использован: Сборник рецептур блюд и кулинарных изделий для предприятий общетвенного питания 1993 и 1996гг.Сборник рецнптур блюд и кулинарный изделий татарской нацинальной кухни 1997г.
A3: № рецепта | B3: Наименование блюд | C3: Основные компоненты | D3: Брутто | E3: Нетто | F3: Выход | G3: Белки | H3: Жиры | I3: Углеводы | J3: Ккал | K3: Всего | M3: В том числе
M4: Бюджет | O4: За счет собственной продукции | Q4: Родительский взнос плата
K5: Цена за кг | L5: Сумма | M5: Цена за кг | N5: Сумма | O5: Цена за кг | P5: Сумма | Q5: Цена за кг | R5: Сумма
A6: 4 день
A7: №273 | B7: Овощи натуральные (огурцы) | C7: огурец соленый | D7: 60 | E7: 60 | F7: 60 | G7: 0 | H7: 0 | I7: 0 | J7: 27.2 | K7: 137 | L7: 8.22 | M7: 0 | N7: 0.00 | O7: 0 | P7: 0.00
C9: итого | F9: 60 | L9: =SUM(L7:L8) -> 8.22 | N9: =SUM(N7:N8) -> 0.00 | O9: =SUM(O7:O8) -> 0.00 | P9: =SUM(P7:P8) -> 0.00 | Q9: =SUM(Q7:Q8) -> 0.00 | R9: =SUM(R7:R8) -> 0.00
A10: №517 | B10: Котлеты Рыбные | C10: Котлеты рыбные п/ф из судака(трески) | D10: 100 | E10: 100 | F10: 80 | G10: 27.4 | H10: 5.24 | I10: 0 | J10: 110 | K10: 325 | L10: 32.50 | M10: 325 | N10: 32.50 | O10: 325 | P10: 32.50 | Q10: 325 | R10: 32.5
L14: =D14*K14/1000 -> 0.00 | N14: =D14*M14/1000 -> 0.00 | P14: =D14*O14/1000 -> 0.00 | R14: =D14*Q14/1000 -> 0
A15: №442 | B15: Картофельное пюре | C15: Картофель | D15: 170 | E15: 150 | F15: 150 | G15: 5.01 | H15: 0.72 | I15: 31.19 | J15: 144.29 | K15: 25 | L15: 4.25 | M15: 25 | N15: 4.3
C16: Молоко 2,5 | D16: 24 | E16: 24 | G16: 0.67 | H16: 0.76 | I16: 1.12 | J16: 13.9 | K16: 65 | L16: 1.56 | M16: 65 | N16: 1.56 | Q16: 65 | R16: 1.56
C17: Масло слив | D17: 5.2 | G17: 0.04 | H17: 3.77 | I17: 0.13 | J17: 34.37 | K17: 800 | L17: 4.16 | M17: 800 | N17: 4.16 | Q17: 800 | R17: 4.16
C18: Соль | D18: 1 | L18: 16 | M18: 0.016
A19: №944 | B19: какао с молоком | C19: какао порошок | D19: 4 | E19: 4 | G19: 0.04 | H19: - | I19: - | K19: 688 | L19: =D19*K19/1000 -> 2.75 | M19: 688 | N19: =D19*M19/1000 -> 2.75 | P19: =D19*O19/1000 -> 0.00 | R19: =D19*Q19/1000 -> 0
C20: Молоко 2,5 | D20: 100 | E20: 100 | G20: 2.85 | H20: 3.2 | I20: 4.73 | J20: 58 | K20: 65 | L20: 6.50
C21: Сахар | D21: 20 | E21: 20 | G21: 0 | I21: 14.9 | J21: 58 | K21: 80 | L21: =D21*K21/1000 -> 1.60 | M21: 80 | N21: =D21*M21/1000 -> 1.60 | P21: =D21*O21/1000 -> 0.00 | R21: =D21*Q21/1000 -> 0
C22: итого | F22: 200/7 | Q22: =SUM(Q19:Q21) -> 0 | R22: 0
B23: хлеб | C23: хлеб | D23: 30 | E23: 30 | F23: 30 | G23: 12.16 | H23: 1.44 | I23: 79.76 | J23: 180.8 | K23: 60 | L23: =D23*K23/1000 -> 1.80 | M23: 60 | N23: =D23*M23/1000 -> 1.80 | P23: =D23*O23/1000 -> 0.00 | R23: =D23*Q23/1000 -> 0
C24: хлеб | D24: 20 | E24: 20 | F24: 20 | L24: 1.02 | M24: 51
C25: итого | F25: 50 | G25: =SUM(G24:G24) -> 0 | H25: 0 | I25: 0 | J25: 0 | K25: 0 | L25: 1.02 | M25: 51 | N25: 0 | O25: 0 | P25: 0 | Q25: 0 | R25: 0
G26: =G9+G13+G18+G22+G23+G25 -> 12.16 | H26: 1.44 | I26: 79.76 | J26: 180.8 | K26: 60 | L26: 27.04 | M26: 111.016 | N26: 1.80 | O26: 0 | P26: 0 | Q26: 0 | R26: 0.00
A27: итого за день

Sheet 5
A1: № рецепта | B1: Наименование блюд | C1: Основные компоненты | D1: Брутто | E1: Нетто | F1: Выход | G1: Белки | H1: Жиры | I1: Углеводы | J1: Ккал | K1: Всего | M1: В том числе
B2: 5 день | M2: Бюджет | O2: За счет собственной продукции | Q2: Родительский взнос плата
K3: Цена за кг | L3: Сумма | M3: Цена за кг | N3: Сумма | O3: Цена за кг | P3: Сумма | Q3: Цена за кг | R3: Сумма
B4: Фрукты | C4: Яблоки | D4: 100 | E4: 100 | F4: 100 | G4: 0.08 | H4: 0.069 | I4: 1.79 | J4: 7.8 | K4: 100.00 | L4: 10.00 | Q4: 100 | R4: 10
B5: Котлеты рубленные из птицы | C5: Курица | D5: 130 | E5: 100 | G5: 11 | H5: 13.5 | I5: 4.78 | J5: 185 | K5: 130.00 | L5: 16.90 | Q5: 130 | R5: 16.8
C6: хлеб | D6: 13 | E6: 13 | G6: 6.96 | H6: 1.2 | I6: 32.96 | J6: 181 | K6: 60 | L6: 0.78 | M6: 60 | N6: 0.78
C7: Молоко | D7: 19 | E7: 19 | G7: 2.82 | H7: 3.2 | I7: 4.73 | J7: 58 | K7: 65 | L7: 1.23 | Q7: 65 | R7: 1.23
C8: Масло сливоч | D8: 5 | E8: 5 | G8: 0.04 | H8: 3.63 | I8: 0.13 | J8: 33.05 | K8: 800 | L8: 4 | Q8: 800 | R8: 4
C9: Масло растительное | D9: 3 | E9: 3 | H9: 6.93 | J9: 62.93 | K9: 140 | L9: 0.42 | Q9: 140 | R9: 0.42
B10: Рис отварной | C10: рис | D10: 55 | E10: 55 | G10: 1.16 | H10: 0.42 | I10: 10.58 | J10: 52.55 | K10: 90 | L10: =D10*K10/1000 -> 4.95 | M10: 90 | N10: =D10*M10/1000 -> 4.95 | P10: 90.00 | R10: 4.95
C11: масло сливочное | D11: 7 | E11: 7 | G11: 0.04 | H11: 3.63 | I11: 0.13 | J11: 33.05 | K11: 800 | L11: 5.60 | N11: =D11*M11/1000 -> 0.00 | P11: =D11*O11/1000 -> 0.00 | Q11: 800 | R11: =D11*Q11/1000 -> 5.6
C12: Соль | D12: 1 | E12: 1 | G12: - | H12: - | I12: - | J12: - | K12: 16 | L12: =D12*K12/1000 -> 0.02 | M12: 16 | N12: =D12*M12/1000 -> 0.02 | P12: =D12*O12/1000 -> 0.00 | R12: =D12*Q12/1000 -> 0
C13: итого | F13: 100 | G13: =SUM(G9:G12) -> 1.20 | H13: =SUM(H9:H12) -> 10.98 | I13: 10.71 | J13: 148.53 | L13: 10.99 | N13: 4.97 | P13: 90.00 | R13: 10.97
A14: №944 | B14: Чай с лимоном | C14: заварка | D14: 1 | E14: 1 | G14: 0 | H14: 0 | I14: 0 | J14: 0 | K14: 688 | L14: =D14*K14/1000 -> 0.69 | M14: 688 | N14: =D14*M14/1000 -> 0.69 | P14: =D14*O14/1000 -> 0.00 | Q14: 0 | R14: 0
C15: лимон | D15: 8 | E15: 8 | G15: 0 | H15: 0 | I15: 0 | J15: 0 | K15: 170 | L15: =D15*K15/1000 -> 1.36 | N15: =D15*M15/1000 -> 0.00 | P15: =D15*O15/1000 -> 0.00 | Q15: 170 | R15: =D15*Q15/1000 -> 1.36
C16: Сахар | D16: 15 | E16: 15 | I16: 19.96 | J16: 75 | K16: 80 | L16: =D16*K16/1000 -> 1.20 | M16: 80 | N16: =D16*M16/1000 -> 1.20 | P16: =D16*O16/1000 -> 0.00 | R16: =D16*Q16/1000 -> 0
F17: 200
B18: хлеб | C18: хлеб | D18: 20 | E18: 20 | F18: 20 | G18: 6.96 | H18: 1.2 | I18: 32.96 | J18: 181 | K18: 51 | L18: 1.02 | M18: 51 | N18: 1.02
B19: хлеб | C19: хлеб | D19: 30 | E19: 30 | F19: 30 | H19: 1.2 | I19: 46 | J19: 167.2 | K19: 60 | L19: =D19*K19/1000 -> 1.80 | M19: 60 | N19: =D19*M19/1000 -> 1.80 | O19: =G19*N19/1000 -> 0.00 | P19: =D19*O19/1000 -> 0.00 | Q19: =I19*P19/1000 -> 0.00 | R19: =D19*Q19/1000 -> 0
C20: итого | F20: 75 | G20: =SUM(#REF!) ->  | H20: =SUM(#REF!) ->  | I20: =SUM(#REF!) ->  | J20: =SUM(#REF!) ->  | K20: =SUM(#REF!) ->  | L20: =SUM(#REF!) ->  | M20: =SUM(#REF!) ->  | N20: =SUM(#REF!) ->  | O20: =SUM(#REF!) ->  | P20: =SUM(#REF!) ->  | Q20: =SUM(#REF!) ->  | R20: =SUM(#REF!) -> 
B21: итого за день | G21: =#REF!+G19+G17+G13 ->  | H21: =#REF!+H19+H17+H13 ->  | I21: =#REF!+I19+I17+I13 ->  | J21: =#REF!+J19+J17+J13 ->  | K21: =#REF!+K19+K17+K13 ->  | L21: =L20+L6+L17+L13 -> 

Sheet 6
A1: № рецепта | B1: Наименование блюд | C1: Основные компоненты | D1: Брутто | E1: Нетто | F1: Выход | G1: Белки | H1: Жиры | I1: Углеводы | J1: Ккал | K1: Всего | M1: В том числе
B2: 6 день | M2: Бюджет | O2: За счет собственной продукции | Q2: Родительский взнос плата
K3: Цена за кг | L3: Сумма | M3: Цена за кг | N3: Сумма | O3: Цена за кг | P3: Сумма | Q3: Цена за кг | R3: Сумма
B4: Фрукты | C4: Апельсин | D4: 100 | E4: 100 | F4: 100 | K4: 150.0 | L4: 15 | Q4: 150 | R4: 15
A5: №561 | B5: Мясо тушеное | C5: Говядина | D5: 83 | E5: 60 | G5: 16.7 | H5: 12.9 | I5: 0.0 | J5: 165.5 | K5: 440.0 | L5: 36.52 | Q5: 440 | R5: 36.52
C6: Морковь | D6: 5 | E6: 3 | G6: 0.2 | H6: 0.0 | I6: 0.8 | J6: 3.4 | K6: 35.0 | L6: 0.17 | O6: 35 | P6: 0.17
C7: Лук | D7: 5 | E7: 3 | G7: 0.4 | H7: 0.0 | I7: 2.4 | J7: 10.0 | K7: 30.0 | L7: 0.15 | O7: 30 | P7: 0.15
C8: Масло рас | D8: 5 | E8: 5 | G8: 0.0 | H8: 7.0 | I8: 0.0 | J8: 62.9 | K8: 140.0 | L8: 0.7 | M8: 140 | N8: 0.7
C9: Томатная паста | D9: 7 | E9: 7 | G9: 0.1 | H9: 0.0 | I9: 0.4 | J9: 2.0 | K9: 175.0 | L9: 1.22 | M9: 175 | N9: 1.22
C10: Мука пшенич | D10: 2 | E10: 2 | G10: 0.4 | H10: 0.0 | I10: 2.7 | J10: 13.1 | K10: 40.0 | L10: 0.08 | M10: 40.0 | N10: 0.08
C11: соль | D11: 1 | E11: 1 | G11: 0.0 | H11: 0.0 | I11: 0.0 | K11: 16.0 | L11: 0.016
F12: 2
A13: №442 | B13: Макароны отварные | C13: Макаронные изделия | D13: 53 | E13: 53 | G13: 4.1 | H13: 0.4 | I13: 27.2 | J13: 142.1 | K13: 50.0 | L13: 2.65 | M13: 50 | N13: 2.65
C14: Масло сливочное | D14: 5 | E14: 5 | G14: 0.1 | H14: 7.3 | I14: 0.3 | J14: 66.1 | K14: 800.0 | L14: 4 | Q14: 800 | R14: 4
C15: соль | D15: 1 | E15: 1 | K15: 16.0 | L15: 0.0
B16: Чай с сахаром | C16: Заварка | D16: 1 | E16: 1 | G16: 0 | K16: 688 | L16: =D16*K16/1000 -> 0.69 | M16: 688 | N16: =D16*M16/1000 -> 0.69 | P16: =D16*O16/1000 -> 0.00 | R16: =D16*Q16/1000 -> 0
C17: Сахар | D17: 15 | E17: 15 | G17: =SUM(F17) -> 0 | I17: 14.9 | J17: 56.8 | K17: 80 | L17: =D17*K17/1000 -> 1.20 | M17: 80 | N17: =D17*M17/1000 -> 1.20 | P17: =D17*O17/1000 -> 0.00 | R17: =D17*Q17/1000 -> 0
C18: итого | F18: 200
B19: хлеб | C19: хлеб | D19: 20 | E19: 20 | F19: 20 | G19: 6.96 | H19: 1.2 | I19: 32.96 | J19: 181 | K19: 51 | L19: 1.02 | M19: 51 | N19: 1.02 | P19: 51 | R19: 1.02
C20: хлеб | D20: 30 | E20: 30 | F20: 30 | G20: 6.96 | H20: 1.2 | I20: 46 | J20: 167.2 | K20: 60 | L20: =D20*K20/1000 -> 1.80 | M20: 60 | N20: =D20*M20/1000 -> 1.80 | P20: 60.00 | R20: 1.8
A21: итого за день | G21: =G20+G18+#REF!+G15 ->  | H21: =H20+H18+#REF!+H15 ->  | I21: =I20+I18+#REF!+I15 ->  | J21: =J20+J18+#REF!+J15 ->  | K21: =K20+K18+#REF!+K15 ->  | L21: =L20+L18+#REF!+L15 ->  | M21: =M20+M18+#REF!+M15 ->  | N21: =N20+N18+#REF!+N15 ->  | O21: =O20+O18+#REF!+O15 ->  | P21: =P20+P18+#REF!+P15 ->  | Q21: =Q20+Q18+#REF!+Q15 ->  | R21: =R20+R18+#REF!+R15 -> 

Sheet 7
A1: № рецепта | B1: Наименование блюд | E1: Основные компоненты | F1: Брутто | G1: Нетто | H1: Выход | I1: Белки | J1: Жиры | K1: Углеводы | L1: Ккал | M1: Всего | O1: В том числе
O2: Бюджет | Q2: За счет собственной продукции | S2: Родительский взнос плата
B3: 7 день | M3: Цена за кг | N3: Сумма | O3: Цена за кг | P3: Сумма | Q3: Цена за кг | R3: Сумма | S3: Цена за кг | T3: Сумма
B4: Фрукты | E4: Апельсин | F4: 100 | G4: 100 | H4: 100 | I4: 0 | J4: 0 | K4: 10.9 | L4: 47.52 | M4: 150 | N4: 15 | O4: 150 | P4: 15 | S4: 150 | T4: 15
A6: №326 | B6: Сосиски говяжие | E6: сосиски гов | F6: 102 | G6: 100 | I6: 18.4 | J6: 11.9 | L6: 161.9 | M6: 440 | N6: 38.00 | O6: 380 | P6: =F6*O6/1000 -> 38.76 | R6: =F6*Q6/1000 -> 0.00 | S6: 380 | T6: 38
E7: Гречка | F7: 54 | G7: 40 | K7: 5.99 | L7: 215.2 | M7: 75 | N7: =F7*M7/1000 -> 4.05 | O7: 75 | P7: 4.05 | R7: 0.00 | T7: =F7*S7/1000 -> 0
B8: Каша гречневая | E8: Слив масло | F8: 5 | G8: 5 | I8: 0.04 | J8: 3.63 | K8: 0.13 | L8: 157.9 | M8: 800 | N8: 4.00 | P8: 0.00 | S8: 800 | T8: 4
E9: соль | F9: 1 | G9: 1 | M9: 16 | N9: 0.02 | O9: 16 | P9: 0.02 | R9: 0.00 | T9: 0
A10: №944 | B10: Какао с молоком | E10: Какао | F10: 4 | G10: 4 | K10: - | L10: - | M10: 271 | N10: =F10*M10/1000 -> 1.08 | R10: =F10*Q10/1000 -> 0.00 | S10: 271 | T10: =F10*S10/1000 -> 1.084
E11: молоко | F11: 100 | G11: 100 | I11: 2.85 | J11: 3.2 | K11: 4.73 | L11: 58 | M11: 65 | N11: 6.50 | R11: =F11*Q11/1000 -> 0.00
E12: Сахар | F12: 15 | G12: 15 | K12: 14.9 | L12: 56.8 | M12: 80 | N12: =F12*M12/1000 -> 1.20 | O12: 80 | P12: =F12*O12/1000 -> 1.20 | R12: =F12*Q12/1000 -> 0.00 | T12: =F12*S12/1000 -> 0
H13: 200
E14: хлеб | F14: 20 | G14: 20 | H14: 20 | I14: 6.96 | J14: 1.2 | K14: 32.96 | L14: 181 | M14: 51 | N14: 1.02 | O14: 51 | P14: 1.02 | S14: 51 | T14: 1.02
B15: хлеб | E15: хлеб | F15: 30 | G15: 30 | H15: 30 | I15: 6.96 | J15: 1.2 | K15: 32.96 | L15: 167.2 | M15: 60 | N15: =F15*M15/1000 -> 1.80 | O15: 60 | P15: =F15*O15/1000 -> 1.80 | R15: =F15*Q15/1000 -> 0.00 | S15: 60.00 | T15: =F15*S15/1000 -> 1.8
A16: итого за день | I16: =I15+I13+#REF!+I5 ->  | J16: =J15+J13+#REF!+J5 ->  | K16: =K15+K13+#REF!+K5 ->  | L16: =L15+L13+#REF!+L5 ->  | M16: =M15+M13+#REF!+M5 ->  | N16: =N15+N13+#REF!+N5 ->  | O16: =O15+O13+#REF!+O5 ->  | P16: =P15+P13+#REF!+P5 ->  | Q16: =Q15+Q13+#REF!+Q5 ->  | R16: =R15+R13+#REF!+R5 ->  | S16: =S15+S13+#REF!+S5 ->  | T16: =T15+T13+#REF!+T5 -> 

Sheet 8
A1: № рецепта | B1: Наименование блюд | C1: Основные компоненты | D1: Брутто | E1: Нетто | F1: Выход | G1: Белки | H1: Жиры | I1: Углеводы | J1: Ккал | K1: Всего | M1: В том числе
M2: Бюджет | O2: За счет собственной продукции | Q2: Родительский взнос плата
B3: 8 день | K3: Цена за кг | L3: Сумма | M3: Цена за кг | N3: Сумма | O3: Цена за кг | P3: Сумма | Q3: Цена за кг | R3: Сумма
B8: Плов из птицы | C8: Курица | D8: 90 | E8: 50 | G8: 12.8 | H8: 20.1 | I8: 0.5 | J8: 225 | K8: 270 | L8: 24.30 | Q8: 270 | R8: 24.3
C9: масло рас | D9: 7 | E9: 7 | G9: 0.04 | H9: 3.63 | I9: 13.2 | J9: 33.05 | K9: 140 | L9: 0.98 | Q9: 140 | R9: 0.98
C10: лук | D10: 10 | E10: 8
C11: морковь | D11: 15 | E11: 10
C12: Томат паста | D12: 5 | E12: 5 | G12: 0.23 | H12: 0 | I12: 0.97 | J12: 2.16 | K12: 175 | L12: 0.87 | Q12: 175 | R12: 0.87
C13: рис | D13: 35 | E13: 35 | G13: 1.16 | H13: 0.42 | I13: 10.58 | J13: 52.55 | K13: 90 | L13: 3.15 | M13: 90 | N13: 3.15
C14: соль | D14: 1 | E14: 1 | K14: 16.00 | L14: 0.02
A15: №944 | B15: Чай с сахаром с лимоном | C15: заварка | D15: 1 | E15: 1 | K15: 688 | L15: =D15*K15/1000 -> 0.69 | N15: =D15*M15/1000 -> 0.00 | P15: =D15*O15/1000 -> 0.00 | Q15: 688 | R15: =D15*Q15/1000 -> 0.688
C16: лимон | D16: 8 | E16: 7 | K16: 170 | L16: 1.36 | M16: 170 | N16: 1.36
C17: Сахар | D17: 15 | E17: 15 | I17: 19.96 | J17: 75.8 | K17: 80 | L17: =D17*K17/1000 -> 1.20 | M17: 80 | N17: =D17*M17/1000 -> 1.20 | P17: =D17*O17/1000 -> 0.00 | Q17: 80 | R17: =D17*Q17/1000 -> 1.2
F18: 200 | L18: =SUM(L15:L17) -> 3.248 | N18: 2.56 | P18: 0 | R18: 1.888
C19: хлеб | D19: 20 | E19: 20 | G19: 6.96 | H19: 1.2 | I19: 46 | J19: 167.2 | K19: 51 | L19: 1.02 | M19: 51 | N19: 1.02
B20: хлеб | C20: хлеб | D20: 30 | E20: 30 | G20: 6.96 | H20: 1.2 | I20: 46 | J20: 167.2 | K20: 60 | L20: =D20*K20/1000 -> 1.80 | M20: 60 | N20: =D20*M20/1000 -> 1.80 | P20: =D20*O20/1000 -> 0.00 | Q20: =I20*P20/1000 -> 0.00 | R20: =D20*Q20/1000 -> 0
C21: итого | F21: 60 | G21: =SUM(#REF!) ->  | H21: =SUM(#REF!) ->  | I21: =SUM(#REF!) ->  | J21: =SUM(#REF!) ->  | K21: =SUM(#REF!) ->  | L21: =SUM(#REF!) ->  | M21: =SUM(#REF!) ->  | N21: =SUM(#REF!) ->  | O21: =SUM(#REF!) ->  | P21: =SUM(#REF!) ->  | Q21: =SUM(#REF!) ->  | R21: =SUM(#REF!) -> 
B22: итого за день | G22: =#REF!+G20+G18+G14 ->  | H22: =#REF!+H20+H18+H14 ->  | I22: =#REF!+I20+I18+I14 ->  | J22: =#REF!+J20+J18+J14 ->  | K22: =#REF!+K20+K18+K14 ->  | L22: =L21+L6+L18+L14 -> 

Sheet 9
A1: № рецепта | C1: Основные компоненты | D1: Брутто | E1: Нетто | F1: Выход | G1: Белки | H1: Жиры | I1: Углеводы | J1: Ккал | K1: Всего | M1: В том числе
B2: Наименование блюд | M2: Бюджет | O2: За счет собственной продукции | Q2: Родительский взнос плата
B3: 9 день | K3: Цена за кг | L3: Сумма | M3: Цена за кг | N3: Сумма | O3: Цена за кг | P3: Сумма | Q3: Цена за кг | R3: Сумма
C4: капуста квашенная | D4: 70 | E4: 70 | G4: 0.15 | I4: 2.85 | J4: 13.5 | K4: 180 | L4: 12.6 | O4: 25 | P4: 1.50
A5: №273 | B5: Салат из кваш капусты | C5: Лук реп | D5: 10 | E5: 7 | G5: 1.1 | H5: 0 | I5: 6.1 | J5: 29.2 | K5: 30.00 | L5: =D5*K5/1000 -> 0.30 | N5: =D5*M5/1000 -> 0.00 | O5: 30 | P5: =D5*O5/1000 -> 0.30 | R5: =D5*Q5/1000 -> 0
C6: сахарный песок | D6: 3 | E6: 3 | I6: 9.98 | J6: 37.9 | K6: 80.00 | L6: 0.24 | O6: 80 | P6: 0.24
C7: Масло растительное | D7: 3 | G7: - | H7: 9.9 | J7: 89.9 | K7: 140.00 | L7: =D7*K7/1000 -> 0.42 | M7: 140.00 | N7: =D7*M7/1000 -> 0.42 | P7: =D7*O7/1000 -> 0.00 | R7: =D7*Q7/1000 -> 0
C8: итого | F8: 60 | G8: =SUM(G5:G7) -> 1.1 | H8: 9.9 | I8: 16.08 | J8: 157 | K8: 250 | L8: 0.96 | M8: 140 | N8: 0.42 | O8: 110 | P8: 0.54 | Q8: 0 | R8: 0
B9: Котлеты рыбные | C9: котлеты рыбные | D9: 102 | E9: 100 | G9: 27.4 | H9: 5.24 | I9: 0 | J9: 110 | K9: 325 | L9: =D9*K9/1000 -> 33.15 | N9: =D9*M9/1000 -> 0.00 | P9: =D9*O9/1000 -> 0.00 | Q9: 325.00 | R9: =D9*Q9/1000 -> 33.15
C10: Соль | D10: 2 | E10: 2 | K10: 16 | L10: =D10*K10/1000 -> 0.03 | M10: 16 | N10: =D10*M10/1000 -> 0.03 | P10: =D10*O10/1000 -> 0.00 | R10: =D10*Q10/1000 -> 0
C11: Масло растительное | D11: 2 | E11: 2 | H11: 0.24 | J11: 22.45 | K11: 140 | L11: =D11*K11/1000 -> 0.28 | M11: 140 | N11: =D11*M11/1000 -> 0.28 | P11: =D11*O11/1000 -> 0.00 | R11: =D11*Q11/1000 -> 0
F12: 50 | G12: =SUM(G9:G11) -> 27.40 | H12: =SUM(H9:H11) -> 5.48 | I12: 0.00 | J12: 132.45 | K12: 481.00 | L12: 33.46 | M12: 156.00 | N12: 0.31 | O12: 0.00 | P12: 0.00 | Q12: 325.00 | R12: 33.15
A13: №442 | B13: картофельное пюре | C13: картофель | D13: 170 | G13: 2 | H13: 0.4 | I13: 16.3 | J13: 80 | K13: 25 | L13: =D13*K13/1000 -> 4.25 | N13: =D13*M13/1000 -> 0.00 | O13: 25 | P13: =D13*O13/1000 -> 4.25 | R13: =D13*Q13/1000 -> 0
B14: пюре | C14: молоко | D14: 24 | G14: 6.4 | H14: 0.39 | I14: 0.74 | J14: 8.2 | K14: 65 | L14: =D14*K14/1000 -> 1.56 | M14: 65 | N14: =D14*M14/1000 -> 1.56 | P14: =D14*O14/1000 -> 0.00 | R14: =D14*Q14/1000 -> 0
C15: Соль | D15: 1 | G15: - | H15: - | I15: - | J15: - | K15: 16 | L15: =D15*K15/1000 -> 0.02 | M15: 16 | N15: =D15*M15/1000 -> 0.02 | P15: =D15*O15/1000 -> 0.00 | R15: =D15*Q15/1000 -> 0
C16: Масло слив | D16: 5 | G16: 0.02 | H16: 2.5 | I16: 0.04 | J16: 23.1 | K16: 625 | L16: =D16*K16/1000 -> 3.13 | M16: 625 | N16: =D16*M16/1000 -> 3.13 | P16: =D16*O16/1000 -> 0.00 | R16: =D16*Q16/1000 -> 0
C17: итого | F17: 150 | G17: =SUM(G13:G16) -> 8.42 | H17: =SUM(H13:H16) -> 3.29 | I17: 17.08 | J17: 111.3 | K17: 731 | L17: 8.951 | M17: 706 | N17: 4.701 | O17: 25 | P17: 4.25 | Q17: 0 | R17: 0
A18: 944 | B18: Чай с сахаром | C18: Заварка | D18: 1 | E18: 1 | H18: - | I18: - | J18: - | K18: 688 | L18: =D18*K18/1000 -> 0.69 | M18: 688 | N18: =D18*M18/1000 -> 0.69 | P18: =D18*O18/1000 -> 0.00 | R18: =D18*Q18/1000 -> 0
C19: Сахар | D19: 15 | E19: 15 | H19: - | I19: 14.9 | J19: 56.8 | K19: 80 | L19: =D19*K19/1000 -> 1.20 | M19: 80 | N19: =D19*M19/1000 -> 1.20 | P19: =D19*O19/1000 -> 0.00 | R19: =D19*Q19/1000 -> 0
C20: итого | F20: 200 | G20: =SUM(G18:G19) -> 0 | H20: =SUM(H18:H19) -> 0 | I20: 14.9 | J20: 56.8 | L20: 1.888 | N20: 1.888 | P20: 0 | R20: 0
C21: хлеб | D21: 20 | E21: 20 | G21: 6.96 | H21: 1.2 | I21: 32.96 | J21: 181 | K21: 51 | L21: 1.02 | M21: 51 | N21: 1.02
B22: хлеб | C22: хлеб | D22: 30 | E22: 30 | F22: 40 | G22: 6.96 | H22: 1.2 | I22: 32.96 | J22: 167.2 | K22: 60 | L22: =D22*K22/1000 -> 1.80 | M22: 60 | N22: =D22*M22/1000 -> 1.80 | P22: =D22*O22/1000 -> 0.00 | R22: =D22*Q22/1000 -> 0
A23: итого за день | G23: =G8+G12+G17+G20+G22 -> 43.9 | H23: =H8+H12+H17+H20+H22 -> 19.9 | I23: 81.0 | J23: 624.8 | K23: 1522.0 | L23: 47.1 | M23: 1062.0 | N23: 9.1 | O23: 135.0 | P23: 4.8 | Q23: 325.0 | R23: 33.2

Sheet 10
A1: № рецепта | B1: Наименование блюд | C1: Основные компоненты | D1: Брутто | E1: Нетто | F1: Выход | G1: Белки | H1: Жиры | I1: Углеводы | J1: Ккал | K1: Всего | M1: В том числе
M2: Бюджет | O2: За счет собственной продукции | Q2: Родительский взнос плата
B3: 10 день | K3: Цена за кг | L3: Сумма | M3: Цена за кг | N3: Сумма | O3: Цена за кг | P3: Сумма | Q3: Цена за кг | R3: Сумма
A5: №416 | B5: Овощи натур соленые(огурцы) | C5: Огурец соленый | D5: 60 | E5: 60 | G5: 1.1 | I5: 5.43 | J5: 28.9 | K5: 137 | L5: =D5*K5/1000 -> 8.22 | N5: =D5*M5/1000 -> 0.00 | O5: 20 | P5: =D5*O5/1000 -> 1.20 | R5: =D5*Q5/1000 -> 0
C6: итого | F6: 60 | G6: =SUM(G5:G5) -> 1.1 | H6: 0.0 | I6: 5.4 | J6: 28.9 | K6: 137.0 | L6: 8.2 | M6: 0.0 | N6: 0.0 | O6: 20.0 | P6: 1.2 | Q6: 0.0 | R6: 0.0
L7: =D7*K7/1000 -> 0.00 | N7: =D7*M7/1000 -> 0.00 | P7: =D7*O7/1000 -> 0.00 | R7: =D7*Q7/1000 -> 0
B8: Птица тушеная в соусе | C8: курица | D8: 100 | E8: 50 | G8: 27.4 | H8: 5.24 | I8: 0 | J8: 110 | K8: 170 | L8: 17.00 | N8: 0.00 | P8: 0.00 | Q8: 170.0 | R8: 17
C9: Масло растительное | D9: 2 | E9: 2 | H9: 5.99 | I9: 0 | J9: 53.94 | K9: 140 | L9: 0.28 | M9: 140 | N9: 0.28 | P9: 0.00 | R9: 0
C10: Мука пшеничная | D10: 4 | E10: 4 | G10: 0.62 | H10: 0.06 | I10: 4.13 | J10: 20.04 | K10: 40 | L10: 0.16 | M10: 40 | N10: 0.16 | P10: 0.00 | R10: 0
C11: Соль | D11: 1 | E11: 1 | K11: 16 | L11: 0.02 | M11: 16 | N11: 0.02 | P11: 0.00 | R11: 0
C12: сметана | D12: 13 | E12: 13 | K12: 800 | L12: 10.00 | N12: 0.00 | P12: 0.00 | Q12: 800.0 | R12: 10
F13: 50 | G13: =SUM(G8:G12) -> 28.02 | H13: =SUM(H8:H12) -> 11.29 | I13: 4.13 | J13: 183.98 | K13: 1166.00 | L13: 27.46 | N13: 0.46 | P13: 0.00 | R13: 27.00
B14: Макароны отварные | C14: Макаронные изд | D14: 53 | E14: 53 | G14: 5.9 | H14: 1.65 | I14: 30.95 | J14: 167.5 | K14: 50 | L14: =D14*K14/1000 -> 2.65 | N14: =D14*M14/1000 -> 0.00 | P14: =D14*O14/1000 -> 0.00 | Q14: 50 | R14: =D14*Q14/1000 -> 2.65
C15: Масло сливочное | D15: 5 | E15: 5 | G15: 0.04 | H15: 3.6 | I15: 0.06 | J15: 33.05 | K15: 625 | L15: =D15*K15/1000 -> 3.13 | M15: 625 | N15: =D15*M15/1000 -> 3.13 | P15: =D15*O15/1000 -> 0.00 | R15: =D15*Q15/1000 -> 0
A16: №746 | C16: Соль | D16: 1 | E16: 1 | G16: - | H16: - | K16: 16 | L16: =D16*K16/1000 -> 0.02 | M16: 16 | N16: =D16*M16/1000 -> 0.02 | P16: =D16*O16/1000 -> 0.00 | R16: =D16*Q16/1000 -> 0
C17: итого | F17: 150 | G17: =SUM(G14:G16) -> 5.94 | H17: =SUM(H14:H16) -> 5.25 | I17: 31.01 | J17: 200.55 | K17: 691 | L17: 5.791 | M17: 641 | N17: 3.141 | O17: 0 | P17: 0 | Q17: 50 | R17: 2.65
G18: =SUM(#REF!) ->  | H18: =SUM(#REF!) ->  | I18: =SUM(#REF!) ->  | J18: =SUM(#REF!) ->  | K18: =SUM(#REF!) ->  | L18: =SUM(#REF!) ->  | M18: =SUM(#REF!) ->  | N18: =SUM(#REF!) ->  | O18: =SUM(#REF!) ->  | P18: =SUM(#REF!) ->  | Q18: =SUM(#REF!) ->  | R18: =SUM(#REF!) -> 
B19: Кофейный напиток с молоком | C19: кофейный напиток | D19: 5 | E19: 5 | H19: - | I19: - | J19: - | K19: 500 | L19: =D19*K19/1000 -> 2.50 | M19: 500 | N19: =D19*M19/1000 -> 2.50 | P19: =D19*O19/1000 -> 0.00 | R19: =D19*Q19/1000 -> 0
C20: молоко | D20: 100 | E20: 100 | G20: 2.85 | H20: 3.2 | I20: 4.73 | J20: 58 | K20: 65 | L20: 6.50
C21: Сахар | D21: 20 | E21: 20 | G21: 0 | H21: - | I21: 14.9 | J21: 56.8 | K21: 80 | L21: =D21*K21/1000 -> 1.60 | M21: 80 | N21: =D21*M21/1000 -> 1.60 | P21: =D21*O21/1000 -> 0.00 | R21: =D21*Q21/1000 -> 0
A22: 944 | C22: итого | F22: 200 | G22: =SUM(G19:G21) -> 2.85 | P22: =SUM(P19:P21) -> 0 | Q22: 0 | R22: 0
C23: хлеб | D23: 20 | E23: 20 | F23: 20 | G23: 6.96 | H23: 1.2 | I23: 46 | J23: 167.2 | K23: 51 | L23: 1.02 | M23: 51 | N23: 1.02
B24: хлеб иодированный | C24: хлеб | D24: 30 | E24: 30 | F24: 30 | G24: 6.96 | H24: 1.2 | I24: 46 | J24: 167.2 | K24: 60 | L24: =D24*K24/1000 -> 1.80 | M24: 60 | N24: =D24*M24/1000 -> 1.80 | P24: =D24*O24/1000 -> 0.00 | R24: =D24*Q24/1000 -> 0
B25: итого за день | G25: =G24+G22+G18+G17+G13+G6 -> 

Sheet 11
A1: № рецепта | B1: Наименование блюд | C1: Основные компоненты | D1: Брутто | E1: Нетто | F1: Выход | G1: Белки | H1: Жиры | I1: Углеводы | J1: Ккал | K1: Всего | M1: В том числе
M2: Бюджет | O2: За счет собственной продукции | Q2: Родительский взнос плата
K3: Цена за кг | L3: Сумма | M3: Цена за кг | N3: Сумма | O3: Цена за кг | P3: Сумма | Q3: Цена за кг | R3: Сумма
B4: 11 день
B5: Фрукты | C5: Бананы | D5: 150 | E5: 150 | F5: 150 | G5: 1.8 | H5: 0.084 | I5: 17.2 | J5: 74.8 | K5: 170 | L5: 25.50 | Q5: 170 | R5: 25.5
B8: Запеканка картофельная с мясом | C8: говядина котлетное мясо | D8: 63 | E8: 63 | G8: 16.69 | H8: 12.9 | I8: 0 | J8: 165.5 | K8: 440 | L8: 27.72 | M8: 440 | N8: 27.72 | Q8: 440 | R8: 27.72
C9: Масло растительное | D9: 5 | E9: 5 | G9: 1.95 | H9: 4.9 | J9: 8.82 | K9: 140 | L9: 0.70 | M9: 140 | N9: 0.70
C10: Картофель | D10: 230 | E10: 200 | G10: 92 | H10: 0.1 | I10: 6.4 | J10: 26.5 | K10: 25 | L10: 5.75 | M10: 25 | N10: 5.75 | O10: 25 | P10: 5.75
C11: лук | D11: 15 | E11: 10 | G11: 0.15 | H11: 0.02 | I11: 0.35 | J11: 1.44 | K11: 30 | L11: 0.45 | O11: 30 | P11: 0.45
C12: масло сливочное | D12: 11 | G12: 0.04 | H12: 3.63 | I12: 0.13 | J12: 33.05 | K12: 625 | L12: =D12*K12/1000 -> 6.88 | N12: =D12*M12/1000 -> 0.00 | P12: =D12*O12/1000 -> 0.00 | Q12: 800 | R12: =D12*Q12/1000 -> 8.8
C13: Соль | D13: 1 | E13: 1 | G13: - | H13: - | I13: - | J13: - | K13: 16 | L13: =D13*K13/1000 -> 0.02 | M13: 16 | N13: =D13*M13/1000 -> 0.02 | P13: =D13*O13/1000 -> 0.00 | R13: =D13*Q13/1000 -> 0
C14: итого | F14: 100 | G14: =SUM(G5:G13) -> 112.63 | H14: =SUM(H5:H13) -> 21.63 | I14: =SUM(I5:I13) -> 24.08 | J14: =SUM(J5:J13) -> 310.11 | L14: =SUM(L5:L13) -> 67.01 | N14: =SUM(N5:N13) -> 34.19 | P14: =SUM(P5:P13) -> 6.20 | R14: =SUM(R5:R13) -> 62.02
A15: №944 | B15: Чай с лимоном | C15: заварка | D15: 1 | G15: 1.02 | I15: 21.76 | J15: 87.14 | K15: 107 | L15: 50.00 | M15: 107 | N15: =D15*M15/1000 -> 0.11 | P15: =D15*O15/1000 -> 0.00 | R15: =D15*Q15/1000 -> 0
C16: сахар | D16: 15 | G16: 1.36 | I16: 29.02 | J16: 116.19 | K16: 80 | L16: =D16*K16/1000 -> 1.20 | N16: =D16*M16/1000 -> 0.00 | P16: =D16*O16/1000 -> 0.00 | Q16: 80 | R16: =D16*Q16/1000 -> 1.2
C17: лимон | D17: 8 | K17: 170 | L17: =D17*K17/1000 -> 1.36 | N17: =D17*M17/1000 -> 0.00 | P17: =D17*O17/1000 -> 0.00 | Q17: 170 | R17: =D17*Q17/1000 -> 1.36
F18: 200 | G18: =SUM(G15:G17) -> 2.38 | H18: =SUM(H15:H17) -> 0 | I18: =SUM(I15:I17) -> 50.78 | J18: =SUM(J15:J17) -> 203.33 | L18: =SUM(L15:L17) -> 52.56 | N18: =SUM(N15:N17) -> 0.107 | P18: =SUM(P15:P17) -> 0 | R18: =SUM(R15:R17) -> 2.56
B19: хлеб | C19: хлеб | D19: 20 | E19: 20 | F19: 20 | G19: 6.96 | H19: 1.2 | I19: 32.96 | J19: 181 | K19: 51 | L19: 1.02 | M19: 51 | N19: 1.02
B20: хлеб | C20: хлеб | D20: 30 | E20: 30 | F20: 30 | G20: 6.96 | H20: 1.2 | I20: 32.96 | J20: 167.2 | K20: 60 | L20: =D20*K20/1000 -> 1.80 | M20: 60 | N20: =D20*M20/1000 -> 1.80 | P20: =D20*O20/1000 -> 0.00 | R20: =D20*Q20/1000 -> 0
B21: Масло слив. | C21: масло сливочное | D21: 10 | G21: 0.08 | H21: 7.25 | I21: 0.26 | J21: 66.1 | K21: 625 | L21: =D21*K21/1000 -> 6.25 | N21: =D21*M21/1000 -> 0.00 | P21: =D21*O21/1000 -> 0.00 | Q21: 625.00 | R21: =D21*Q21/1000 -> 6.25
B22: Сыр | C22: Сыр гол. | D22: 10 | G22: 2.26 | H22: 2.57 | J22: 33.79 | K22: 600 | L22: =D22*K22/1000 -> 6.00 | N22: =D22*M22/1000 -> 0.00 | P22: =D22*O22/1000 -> 0.00 | Q22: 600.00 | R22: =D22*Q22/1000 -> 6
C23: итого | F23: 75 | G23: =SUM(G21:G22) -> 2.34 | H23: 9.82 | I23: 0.26 | J23: 99.89 | K23: 1225 | L23: 12.25 | M23: 0 | N23: 0 | O23: 0 | P23: 0 | Q23: 1225 | R23: 12.25
B24: итого за день | G24: =G21+G20+G18+G14 -> 122.05 | H24: =H21+H20+H18+H14 -> 30.08 | I24: =I21+I20+I18+I14 -> 108.08 | J24: =J21+J20+J18+J14 -> 746.74 | K24: =K21+K20+K18+K14 -> 685.00 | L24: =L23+#REF!+L18+L14 ->  | M24: =M23+#REF!+M18+M14 ->  | N24: =N23+#REF!+N18+N14 ->  | O24: =O23+#REF!+O18+O14 ->  | P24: =P23+#REF!+P18+P14 ->  | Q24: =Q23+#REF!+Q18+Q14 ->  | R24: =R23+#REF!+R18+R14 -> 

Sheet 12
A2: № рецепта | B2: Наименование блюд | C2: Основные компоненты | D2: Брутто | E2: Нетто | F2: Выход | G2: Белки | H2: Жиры | I2: Углеводы | J2: Ккал | K2: Всего | M2: В том числе
M3: Бюджет | O3: За счет собственной продукции | Q3: Родительский взнос плата
B4: 12 день | K4: Цена за кг | L4: Сумма | M4: Цена за кг | N4: Сумма | O4: Цена за кг | P4: Сумма | Q4: Цена за кг | R4: Сумма
A5: №297 | B5: Запеканка рисовая с творогом | C5: рис | D5: 24 | E5: 24 | G5: 3.36 | H5: 0.57 | I5: 30.36 | J5: 156.8 | K5: 90 | L5: 2.16 | M5: 90 | N5: 2.16
C6: творог | D6: 20 | E6: 20 | G6: 6.76 | H6: 3.75 | I6: 0.81 | J6: 64.4 | K6: 310 | L6: 6.20 | Q6: 310 | R6: 6.2
C7: Яйцо | D7: 0.2 | E7: 0.2 | G7: 1.27 | H7: 1.15 | I7: 0.07 | J7: 15.7 | K7: 10 | L7: 10.00 | M7: 5 | Q7: 10 | R7: 5
C8: Сахар | D8: 7.5 | E8: 7.5 | I8: 14.97 | J8: 56.85 | K8: 80 | L8: 0.60 | M8: 80 | N8: 0.60
C9: Масло слив | D9: 10 | E9: 10 | G9: 0.04 | H9: 3.63 | I9: 0.28 | J9: 33.05 | K9: 800 | L9: 8.00 | Q9: 800.00 | R9: 8
C10: сметана | D10: 5 | E10: 5 | G10: 0.14 | H10: 1 | I10: 0.16 | J10: 10.3 | K10: 190 | L10: 0.95 | Q10: 190.00 | R10: 0.95
F11: 80
A12: №945 | B12: Чай с сахаром | C12: заварка | D12: 1 | E12: 1 | K12: 688.0 | Q12: 688 | R12: 0.69
C13: Сахар | D13: 15 | E13: 15 | Q13: 80 | R13: 1.2
F14: 13
B15: хлеб | C15: хлеб | D15: 30 | E15: 30 | G15: 7.0 | H15: 1.2 | I15: 33.0 | J15: 181.0 | K15: 60.0 | L15: 1.8 | O15: 60 | P15: 1.8
C16: хлеб | D16: 20 | E16: 20 | G16: 7.0 | H16: 1.2 | I16: 33.0 | J16: 181.0 | K16: 51.0 | L16: 1.02 | O16: 51 | P16: 1.02
B24: ИТОГО НА 1 РЕБ | C24: 49.6
B25: ОБЩИЙ

Sheet 13
